{"text_format":"1","workbook":"xlsx","n_sheets":3,"sheets":["Склад","ЦЗЛ","Отдел"],"not_rendered":{"charts":0,"images":0,"macros":1,"external_links":0,"defined_names":0,"comments":0,"pivot_tables":0},"unopened":[],"bounds":{"document_bytes":16777216,"sheet_cells":100000,"rows_first":2000,"rows_last":500,"rows_between":2000,"halvings":0,"cell_chars":16384,"cell_head_chars":4096},"cells_cut":0,"cells_raw":0,"read":"whole","date_system":"1900"}

{"sheet":"Склад","index":0,"n_rows":526,"n_cols":10,"rows_kept":526,"cut":false,"hidden":false,"merged":[[0,9,1,9],[0,8,1,8],[0,5,0,6],[0,0,1,0],[0,2,1,2],[0,1,1,1],[0,3,1,3],[0,4,1,4]]}
["№","Партия","Наименование ","Категория ","Количество под партию, м","Наличие на складе",null,"Потребность в трубе","Приход закупа на склад, м","Итого"]
[null,null,null,null,null,"Кол.во,\n (указать в метрах, или установить нулевое значение)","Номер труб на складе","Потребность, м"]
[1,42365,"тр 273х10",1,50,20,2253,{"$f":"IF(J3<E3,E3-J3,IF(J3>=E3,\"нет\"))","v":30},null,{"$f":"F3+I3","v":20}]
[2,564,"тр 273х20",2,40,50,564,{"$f":"IF(F4=\"Нет\",\"Полная\",IF(F4<E4,E4-F4,IF(F4>=E4,\"нет\")))","v":"нет"},null,{"$f":"F4+I4","v":50}]
[3,456321,"тр 273х8",1,15,20,4563,"нет",null,20]
[null,null,null,null,null,null,null,"нет",null,0]
[null,null,null,null,null,null,null,"нет",null,0]
[null,null,null,null,null,null,null,"нет",null,{"$f":"F8+I8","v":0}]
[null,null,null,null,null,null,null,"нет",null,0]
[null,null,null,null,null,null,null,"нет",null,0]
[null,null,null,null,null,null,null,"нет",null,0]
[null,null,null,null,null,null,null,"нет",null,0]
[null,null,null,null,null,null,null,"нет",null,0]
[null,null,null,null,null,null,null,{"$f":"IF(F14=\"Нет\",\"Полная\",IF(F14<E14,E14-F14,IF(F14>=E14,\"нет\")))","v":"нет"},null,0]
[null,null,null,null,null,null,null,{"$f":"IF(F15=\"Нет\",\"Полная\",IF(F15<E15,E15-F15,IF(F15>=E15,\"нет\")))","v":"нет"},null,0]
[null,null,null,null,null,null,null,"нет",null,0]
[null,null,null,null,null,null,null,"нет",null,0]
[null,null,null,null,null,null,null,"нет",null,0]
[null,null,null,null,null,null,null,"нет",null,0]
[null,null,null,null,null,null,null,"нет",null,0]
[null,null,null,null,null,null,null,"нет",null,0]
[null,null,null,null,null,null,null,"нет",null,0]
[null,null,null,null,null,null,null,"нет",null,0]
[null,null,null,null,null,null,null,"нет",null,0]
[null,null,null,null,null,null,null,"нет",null,0]
[null,null,null,null,null,null,null,"нет",null,0]
[null,null,null,null,null,null,null,"нет",null,0]
[null,null,null,null,null,null,null,"нет",null,0]
[null,null,null,null,null,null,null,"нет",null,0]
[null,null,null,null,null,null,null,"нет",null,0]
[null,null,null,null,null,null,null,"нет",null,0]
[null,null,null,null,null,null,null,"нет",null,0]
[null,null,null,null,null,null,null,"нет",null,0]
[null,null,null,null,null,null,null,"нет",null,0]
[null,null,null,null,null,null,null,"нет",null,0]
[null,null,null,null,null,null,null,"нет",null,0]
[null,null,null,null,null,null,null,"нет",null,0]
[null,null,null,null,null,null,null,"нет",null,0]
[null,null,null,null,null,null,null,"нет",null,0]
[null,null,null,null,null,null,null,"нет",null,0]
[null,null,null,null,null,null,null,"нет",null,0]
[null,null,null,null,null,null,null,"нет",null,0]
[null,null,null,null,null,null,null,"нет",null,0]
[null,null,null,null,null,null,null,"нет",null,0]
[null,null,null,null,null,null,null,"нет",null,0]
[null,null,null,null,null,null,null,"нет",null,0]
[null,null,null,null,null,null,null,"нет",null,0]
[null,null,null,null,null,null,null,"нет",null,0]
[null,null,null,null,null,null,null,"нет",null,0]
[null,null,null,null,null,null,null,"нет",null,0]
[null,null,null,null,null,null,null,"нет",null,0]
[null,null,null,null,null,null,null,"нет",null,0]
[null,null,null,null,null,null,null,"нет",null,0]
[null,null,null,null,null,null,null,"нет",null,0]
[null,null,null,null,null,null,null,"нет",null,0]
[null,null,null,null,null,null,null,"нет",null,0]
[null,null,null,null,null,null,null,"нет",null,0]
[null,null,null,null,null,null,null,"нет",null,0]
[null,null,null,null,null,null,null,"нет",null,0]
[null,null,null,null,null,null,null,"нет",null,0]
[null,null,null,null,null,null,null,"нет",null,0]
[null,null,null,null,null,null,null,"нет",null,0]
[null,null,null,null,null,null,null,"нет",null,0]
[null,null,null,null,null,null,null,"нет",null,0]
[null,null,null,null,null,null,null,"нет",null,0]
[null,null,null,null,null,null,null,"нет",null,0]
[null,null,null,null,null,null,null,"нет",null,0]
[null,null,null,null,null,null,null,"нет",null,0]
[null,null,null,null,null,null,null,"нет",null,0]
[null,null,null,null,null,null,null,"нет",null,0]
[null,null,null,null,null,null,null,"нет",null,0]
[null,null,null,null,null,null,null,"нет",null,{"$f":"F72+I72","v":0}]
[null,null,null,null,null,null,null,"нет",null,0]
[null,null,null,null,null,null,null,"нет",null,0]
[null,null,null,null,null,null,null,"нет",null,0]
[null,null,null,null,null,null,null,"нет",null,0]
[null,null,null,null,null,null,null,"нет",null,0]
[null,null,null,null,null,null,null,"нет",null,0]
[null,null,null,null,null,null,null,{"$f":"IF(F79=\"Нет\",\"Полная\",IF(F79<E79,E79-F79,IF(F79>=E79,\"нет\")))","v":"нет"},null,0]
[null,null,null,null,null,null,null,"нет",null,0]
[null,null,null,null,null,null,null,"нет",null,0]
[null,null,null,null,null,null,null,"нет",null,0]
[null,null,null,null,null,null,null,"нет",null,0]
[null,null,null,null,null,null,null,"нет",null,0]
[null,null,null,null,null,null,null,"нет",null,0]
[null,null,null,null,null,null,null,"нет",null,0]
[null,null,null,null,null,null,null,"нет",null,0]
[null,null,null,null,null,null,null,"нет",null,0]
[null,null,null,null,null,null,null,"нет",null,0]
[null,null,null,null,null,null,null,"нет",null,0]
[null,null,null,null,null,null,null,"нет",null,0]
[null,null,null,null,null,null,null,"нет",null,0]
[null,null,null,null,null,null,null,"нет",null,0]
[null,null,null,null,null,null,null,"нет",null,0]
[null,null,null,null,null,null,null,"нет",null,0]
[null,null,null,null,null,null,null,"нет",null,0]
[null,null,null,null,null,null,null,"нет",null,0]
[null,null,null,null,null,null,null,"нет",null,0]
[null,null,null,null,null,null,null,"нет",null,0]
[null,null,null,null,null,null,null,"нет",null,0]
[null,null,null,null,null,null,null,"нет",null,0]
[null,null,null,null,null,null,null,"нет",null,0]
[null,null,null,null,null,null,null,"нет",null,0]
[null,null,null,null,null,null,null,"нет",null,0]
[null,null,null,null,null,null,null,"нет",null,0]
[null,null,null,null,null,null,null,"нет",null,0]
[null,null,null,null,null,null,null,"нет",null,0]
[null,null,null,null,null,null,null,"нет",null,0]
[null,null,null,null,null,null,null,"нет",null,0]
[null,null,null,null,null,null,null,"нет",null,0]
[null,null,null,null,null,null,null,"нет",null,0]
[null,null,null,null,null,null,null,"нет",null,0]
[null,null,null,null,null,null,null,"нет",null,0]
[null,null,null,null,null,null,null,"нет",null,0]
[null,null,null,null,null,null,null,"нет",null,0]
[null,null,null,null,null,null,null,"нет",null,0]
[null,null,null,null,null,null,null,"нет",null,0]
[null,null,null,null,null,null,null,"нет",null,0]
[null,null,null,null,null,null,null,"нет",null,0]
[null,null,null,null,null,null,null,"нет",null,0]
[null,null,null,null,null,null,null,"нет",null,0]
[null,null,null,null,null,null,null,"нет",null,0]
[null,null,null,null,null,null,null,"нет",null,0]
[null,null,null,null,null,null,null,"нет",null,0]
[null,null,null,null,null,null,null,"нет",null,0]
[null,null,null,null,null,null,null,"нет",null,0]
[null,null,null,null,null,null,null,"нет",null,0]
[null,null,null,null,null,null,null,"нет",null,0]
[null,null,null,null,null,null,null,"нет",null,0]
[null,null,null,null,null,null,null,"нет",null,0]
[null,null,null,null,null,null,null,"нет",null,0]
[null,null,null,null,null,null,null,"нет",null,0]
[null,null,null,null,null,null,null,"нет",null,0]
[null,null,null,null,null,null,null,"нет",null,0]
[null,null,null,null,null,null,null,"нет",null,0]
[null,null,null,null,null,null,null,"нет",null,{"$f":"F136+I136","v":0}]
[null,null,null,null,null,null,null,"нет",null,0]
[null,null,null,null,null,null,null,"нет",null,0]
[null,null,null,null,null,null,null,"нет",null,0]
[null,null,null,null,null,null,null,"нет",null,0]
[null,null,null,null,null,null,null,"нет",null,0]
[null,null,null,null,null,null,null,"нет",null,0]
[null,null,null,null,null,null,null,{"$f":"IF(F143=\"Нет\",\"Полная\",IF(F143<E143,E143-F143,IF(F143>=E143,\"нет\")))","v":"нет"},null,0]
[null,null,null,null,null,null,null,"нет",null,0]
[null,null,null,null,null,null,null,"нет",null,0]
[null,null,null,null,null,null,null,"нет",null,0]
[null,null,null,null,null,null,null,"нет",null,0]
[null,null,null,null,null,null,null,"нет",null,0]
[null,null,null,null,null,null,null,"нет",null,0]
[null,null,null,null,null,null,null,"нет",null,0]
[null,null,null,null,null,null,null,"нет",null,0]
[null,null,null,null,null,null,null,"нет",null,0]
[null,null,null,null,null,null,null,"нет",null,0]
[null,null,null,null,null,null,null,"нет",null,0]
[null,null,null,null,null,null,null,"нет",null,0]
[null,null,null,null,null,null,null,"нет",null,0]
[null,null,null,null,null,null,null,"нет",null,0]
[null,null,null,null,null,null,null,"нет",null,0]
[null,null,null,null,null,null,null,"нет",null,0]
[null,null,null,null,null,null,null,"нет",null,0]
[null,null,null,null,null,null,null,"нет",null,0]
[null,null,null,null,null,null,null,"нет",null,0]
[null,null,null,null,null,null,null,"нет",null,0]
[null,null,null,null,null,null,null,"нет",null,0]
[null,null,null,null,null,null,null,"нет",null,0]
[null,null,null,null,null,null,null,"нет",null,0]
[null,null,null,null,null,null,null,"нет",null,0]
[null,null,null,null,null,null,null,"нет",null,0]
[null,null,null,null,null,null,null,"нет",null,0]
[null,null,null,null,null,null,null,"нет",null,0]
[null,null,null,null,null,null,null,"нет",null,0]
[null,null,null,null,null,null,null,"нет",null,0]
[null,null,null,null,null,null,null,"нет",null,0]
[null,null,null,null,null,null,null,"нет",null,0]
[null,null,null,null,null,null,null,"нет",null,0]
[null,null,null,null,null,null,null,"нет",null,0]
[null,null,null,null,null,null,null,"нет",null,0]
[null,null,null,null,null,null,null,"нет",null,0]
[null,null,null,null,null,null,null,"нет",null,0]
[null,null,null,null,null,null,null,"нет",null,0]
[null,null,null,null,null,null,null,"нет",null,0]
[null,null,null,null,null,null,null,"нет",null,0]
[null,null,null,null,null,null,null,"нет",null,0]
[null,null,null,null,null,null,null,"нет",null,0]
[null,null,null,null,null,null,null,"нет",null,0]
[null,null,null,null,null,null,null,"нет",null,0]
[null,null,null,null,null,null,null,"нет",null,0]
[null,null,null,null,null,null,null,"нет",null,0]
[null,null,null,null,null,null,null,"нет",null,0]
[null,null,null,null,null,null,null,"нет",null,0]
[null,null,null,null,null,null,null,"нет",null,0]
[null,null,null,null,null,null,null,"нет",null,0]
[null,null,null,null,null,null,null,"нет",null,0]
[null,null,null,null,null,null,null,"нет",null,0]
[null,null,null,null,null,null,null,"нет",null,0]
[null,null,null,null,null,null,null,"нет",null,0]
[null,null,null,null,null,null,null,"нет",null,0]
[null,null,null,null,null,null,null,"нет",null,0]
[null,null,null,null,null,null,null,"нет",null,0]
[null,null,null,null,null,null,null,"нет",null,{"$f":"F200+I200","v":0}]
[null,null,null,null,null,null,null,"нет",null,0]
[null,null,null,null,null,null,null,"нет",null,0]
[null,null,null,null,null,null,null,"нет",null,0]
[null,null,null,null,null,null,null,"нет",null,0]
[null,null,null,null,null,null,null,"нет",null,0]
[null,null,null,null,null,null,null,"нет",null,0]
[null,null,null,null,null,null,null,{"$f":"IF(F207=\"Нет\",\"Полная\",IF(F207<E207,E207-F207,IF(F207>=E207,\"нет\")))","v":"нет"},null,0]
[null,null,null,null,null,null,null,"нет",null,0]
[null,null,null,null,null,null,null,"нет",null,0]
[null,null,null,null,null,null,null,"нет",null,0]
[null,null,null,null,null,null,null,"нет",null,0]
[null,null,null,null,null,null,null,"нет",null,0]
[null,null,null,null,null,null,null,"нет",null,0]
[null,null,null,null,null,null,null,"нет",null,0]
[null,null,null,null,null,null,null,"нет",null,0]
[null,null,null,null,null,null,null,"нет",null,0]
[null,null,null,null,null,null,null,"нет",null,0]
[null,null,null,null,null,null,null,"нет",null,0]
[null,null,null,null,null,null,null,"нет",null,0]
[null,null,null,null,null,null,null,"нет",null,0]
[null,null,null,null,null,null,null,"нет",null,0]
[null,null,null,null,null,null,null,"нет",null,0]
[null,null,null,null,null,null,null,"нет",null,0]
[null,null,null,null,null,null,null,"нет",null,0]
[null,null,null,null,null,null,null,"нет",null,0]
[null,null,null,null,null,null,null,"нет",null,0]
[null,null,null,null,null,null,null,"нет",null,0]
[null,null,null,null,null,null,null,"нет",null,0]
[null,null,null,null,null,null,null,"нет",null,0]
[null,null,null,null,null,null,null,"нет",null,0]
[null,null,null,null,null,null,null,"нет",null,0]
[null,null,null,null,null,null,null,"нет",null,0]
[null,null,null,null,null,null,null,"нет",null,0]
[null,null,null,null,null,null,null,"нет",null,0]
[null,null,null,null,null,null,null,"нет",null,0]
[null,null,null,null,null,null,null,"нет",null,0]
[null,null,null,null,null,null,null,"нет",null,0]
[null,null,null,null,null,null,null,"нет",null,0]
[null,null,null,null,null,null,null,"нет",null,0]
[null,null,null,null,null,null,null,"нет",null,0]
[null,null,null,null,null,null,null,"нет",null,0]
[null,null,null,null,null,null,null,"нет",null,0]
[null,null,null,null,null,null,null,"нет",null,0]
[null,null,null,null,null,null,null,"нет",null,0]
[null,null,null,null,null,null,null,"нет",null,0]
[null,null,null,null,null,null,null,"нет",null,0]
[null,null,null,null,null,null,null,"нет",null,0]
[null,null,null,null,null,null,null,"нет",null,0]
[null,null,null,null,null,null,null,"нет",null,0]
[null,null,null,null,null,null,null,"нет",null,0]
[null,null,null,null,null,null,null,"нет",null,0]
[null,null,null,null,null,null,null,"нет",null,0]
[null,null,null,null,null,null,null,"нет",null,0]
[null,null,null,null,null,null,null,"нет",null,0]
[null,null,null,null,null,null,null,"нет",null,0]
[null,null,null,null,null,null,null,"нет",null,0]
[null,null,null,null,null,null,null,"нет",null,0]
[null,null,null,null,null,null,null,"нет",null,0]
[null,null,null,null,null,null,null,"нет",null,0]
[null,null,null,null,null,null,null,"нет",null,0]
[null,null,null,null,null,null,null,"нет",null,0]
[null,null,null,null,null,null,null,"нет",null,0]
[null,null,null,null,null,null,null,"нет",null,0]
[null,null,null,null,null,null,null,"нет",null,{"$f":"F264+I264","v":0}]
[null,null,null,null,null,null,null,"нет",null,0]
[null,null,null,null,null,null,null,"нет",null,0]
[null,null,null,null,null,null,null,"нет",null,0]
[null,null,null,null,null,null,null,"нет",null,0]
[null,null,null,null,null,null,null,"нет",null,0]
[null,null,null,null,null,null,null,"нет",null,0]
[null,null,null,null,null,null,null,{"$f":"IF(F271=\"Нет\",\"Полная\",IF(F271<E271,E271-F271,IF(F271>=E271,\"нет\")))","v":"нет"},null,0]
[null,null,null,null,null,null,null,"нет",null,0]
[null,null,null,null,null,null,null,"нет",null,0]
[null,null,null,null,null,null,null,"нет",null,0]
[null,null,null,null,null,null,null,"нет",null,0]
[null,null,null,null,null,null,null,"нет",null,0]
[null,null,null,null,null,null,null,"нет",null,0]
[null,null,null,null,null,null,null,"нет",null,0]
[null,null,null,null,null,null,null,"нет",null,0]
[null,null,null,null,null,null,null,"нет",null,0]
[null,null,null,null,null,null,null,"нет",null,0]
[null,null,null,null,null,null,null,"нет",null,0]
[null,null,null,null,null,null,null,"нет",null,0]
[null,null,null,null,null,null,null,"нет",null,0]
[null,null,null,null,null,null,null,"нет",null,0]
[null,null,null,null,null,null,null,"нет",null,0]
[null,null,null,null,null,null,null,"нет",null,0]
[null,null,null,null,null,null,null,"нет",null,0]
[null,null,null,null,null,null,null,"нет",null,0]
[null,null,null,null,null,null,null,"нет",null,0]
[null,null,null,null,null,null,null,"нет",null,0]
[null,null,null,null,null,null,null,"нет",null,0]
[null,null,null,null,null,null,null,"нет",null,0]
[null,null,null,null,null,null,null,"нет",null,0]
[null,null,null,null,null,null,null,"нет",null,0]
[null,null,null,null,null,null,null,"нет",null,0]
[null,null,null,null,null,null,null,"нет",null,0]
[null,null,null,null,null,null,null,"нет",null,0]
[null,null,null,null,null,null,null,"нет",null,0]
[null,null,null,null,null,null,null,"нет",null,0]
[null,null,null,null,null,null,null,"нет",null,0]
[null,null,null,null,null,null,null,"нет",null,0]
[null,null,null,null,null,null,null,"нет",null,0]
[null,null,null,null,null,null,null,"нет",null,0]
[null,null,null,null,null,null,null,"нет",null,0]
[null,null,null,null,null,null,null,"нет",null,0]
[null,null,null,null,null,null,null,"нет",null,0]
[null,null,null,null,null,null,null,"нет",null,0]
[null,null,null,null,null,null,null,"нет",null,0]
[null,null,null,null,null,null,null,"нет",null,0]
[null,null,null,null,null,null,null,"нет",null,0]
[null,null,null,null,null,null,null,"нет",null,0]
[null,null,null,null,null,null,null,"нет",null,0]
[null,null,null,null,null,null,null,"нет",null,0]
[null,null,null,null,null,null,null,"нет",null,0]
[null,null,null,null,null,null,null,"нет",null,0]
[null,null,null,null,null,null,null,"нет",null,0]
[null,null,null,null,null,null,null,"нет",null,0]
[null,null,null,null,null,null,null,"нет",null,0]
[null,null,null,null,null,null,null,"нет",null,0]
[null,null,null,null,null,null,null,"нет",null,0]
[null,null,null,null,null,null,null,"нет",null,0]
[null,null,null,null,null,null,null,"нет",null,0]
[null,null,null,null,null,null,null,"нет",null,0]
[null,null,null,null,null,null,null,"нет",null,0]
[null,null,null,null,null,null,null,"нет",null,0]
[null,null,null,null,null,null,null,"нет",null,0]
[null,null,null,null,null,null,null,"нет",null,{"$f":"F328+I328","v":0}]
[null,null,null,null,null,null,null,"нет",null,0]
[null,null,null,null,null,null,null,"нет",null,0]
[null,null,null,null,null,null,null,"нет",null,0]
[null,null,null,null,null,null,null,"нет",null,0]
[null,null,null,null,null,null,null,"нет",null,0]
[null,null,null,null,null,null,null,"нет",null,0]
[null,null,null,null,null,null,null,{"$f":"IF(F335=\"Нет\",\"Полная\",IF(F335<E335,E335-F335,IF(F335>=E335,\"нет\")))","v":"нет"},null,0]
[null,null,null,null,null,null,null,"нет",null,0]
[null,null,null,null,null,null,null,"нет",null,0]
[null,null,null,null,null,null,null,"нет",null,0]
[null,null,null,null,null,null,null,"нет",null,0]
[null,null,null,null,null,null,null,"нет",null,0]
[null,null,null,null,null,null,null,"нет",null,0]
[null,null,null,null,null,null,null,"нет",null,0]
[null,null,null,null,null,null,null,"нет",null,0]
[null,null,null,null,null,null,null,"нет",null,0]
[null,null,null,null,null,null,null,"нет",null,0]
[null,null,null,null,null,null,null,"нет",null,0]
[null,null,null,null,null,null,null,"нет",null,0]
[null,null,null,null,null,null,null,"нет",null,0]
[null,null,null,null,null,null,null,"нет",null,0]
[null,null,null,null,null,null,null,"нет",null,0]
[null,null,null,null,null,null,null,"нет",null,0]
[null,null,null,null,null,null,null,"нет",null,0]
[null,null,null,null,null,null,null,"нет",null,0]
[null,null,null,null,null,null,null,"нет",null,0]
[null,null,null,null,null,null,null,"нет",null,0]
[null,null,null,null,null,null,null,"нет",null,0]
[null,null,null,null,null,null,null,"нет",null,0]
[null,null,null,null,null,null,null,"нет",null,0]
[null,null,null,null,null,null,null,"нет",null,0]
[null,null,null,null,null,null,null,"нет",null,0]
[null,null,null,null,null,null,null,"нет",null,0]
[null,null,null,null,null,null,null,"нет",null,0]
[null,null,null,null,null,null,null,"нет",null,0]
[null,null,null,null,null,null,null,"нет",null,0]
[null,null,null,null,null,null,null,"нет",null,0]
[null,null,null,null,null,null,null,"нет",null,0]
[null,null,null,null,null,null,null,"нет",null,0]
[null,null,null,null,null,null,null,"нет",null,0]
[null,null,null,null,null,null,null,"нет",null,0]
[null,null,null,null,null,null,null,"нет",null,0]
[null,null,null,null,null,null,null,"нет",null,0]
[null,null,null,null,null,null,null,"нет",null,0]
[null,null,null,null,null,null,null,"нет",null,0]
[null,null,null,null,null,null,null,"нет",null,0]
[null,null,null,null,null,null,null,"нет",null,0]
[null,null,null,null,null,null,null,"нет",null,0]
[null,null,null,null,null,null,null,"нет",null,0]
[null,null,null,null,null,null,null,"нет",null,0]
[null,null,null,null,null,null,null,"нет",null,0]
[null,null,null,null,null,null,null,"нет",null,0]
[null,null,null,null,null,null,null,"нет",null,0]
[null,null,null,null,null,null,null,"нет",null,0]
[null,null,null,null,null,null,null,"нет",null,0]
[null,null,null,null,null,null,null,"нет",null,0]
[null,null,null,null,null,null,null,"нет",null,0]
[null,null,null,null,null,null,null,"нет",null,0]
[null,null,null,null,null,null,null,"нет",null,0]
[null,null,null,null,null,null,null,"нет",null,0]
[null,null,null,null,null,null,null,"нет",null,0]
[null,null,null,null,null,null,null,"нет",null,0]
[null,null,null,null,null,null,null,"нет",null,0]
[null,null,null,null,null,null,null,"нет",null,{"$f":"F392+I392","v":0}]
[null,null,null,null,null,null,null,"нет",null,0]
[null,null,null,null,null,null,null,"нет",null,0]
[null,null,null,null,null,null,null,"нет",null,0]
[null,null,null,null,null,null,null,"нет",null,0]
[null,null,null,null,null,null,null,"нет",null,0]
[null,null,null,null,null,null,null,"нет",null,0]
[null,null,null,null,null,null,null,{"$f":"IF(F399=\"Нет\",\"Полная\",IF(F399<E399,E399-F399,IF(F399>=E399,\"нет\")))","v":"нет"},null,0]
[null,null,null,null,null,null,null,"нет",null,0]
[null,null,null,null,null,null,null,"нет",null,0]
[null,null,null,null,null,null,null,"нет",null,0]
[null,null,null,null,null,null,null,"нет",null,0]
[null,null,null,null,null,null,null,"нет",null,0]
[null,null,null,null,null,null,null,"нет",null,0]
[null,null,null,null,null,null,null,"нет",null,0]
[null,null,null,null,null,null,null,"нет",null,0]
[null,null,null,null,null,null,null,"нет",null,0]
[null,null,null,null,null,null,null,"нет",null,0]
[null,null,null,null,null,null,null,"нет",null,0]
[null,null,null,null,null,null,null,"нет",null,0]
[null,null,null,null,null,null,null,"нет",null,0]
[null,null,null,null,null,null,null,"нет",null,0]
[null,null,null,null,null,null,null,"нет",null,0]
[null,null,null,null,null,null,null,"нет",null,0]
[null,null,null,null,null,null,null,"нет",null,0]
[null,null,null,null,null,null,null,"нет",null,0]
[null,null,null,null,null,null,null,"нет",null,0]
[null,null,null,null,null,null,null,"нет",null,0]
[null,null,null,null,null,null,null,"нет",null,0]
[null,null,null,null,null,null,null,"нет",null,0]
[null,null,null,null,null,null,null,"нет",null,0]
[null,null,null,null,null,null,null,"нет",null,0]
[null,null,null,null,null,null,null,"нет",null,0]
[null,null,null,null,null,null,null,"нет",null,0]
[null,null,null,null,null,null,null,"нет",null,0]
[null,null,null,null,null,null,null,"нет",null,0]
[null,null,null,null,null,null,null,"нет",null,0]
[null,null,null,null,null,null,null,"нет",null,0]
[null,null,null,null,null,null,null,"нет",null,0]
[null,null,null,null,null,null,null,"нет",null,0]
[null,null,null,null,null,null,null,"нет",null,0]
[null,null,null,null,null,null,null,"нет",null,0]
[null,null,null,null,null,null,null,"нет",null,0]
[null,null,null,null,null,null,null,"нет",null,0]
[null,null,null,null,null,null,null,"нет",null,0]
[null,null,null,null,null,null,null,"нет",null,0]
[null,null,null,null,null,null,null,"нет",null,0]
[null,null,null,null,null,null,null,"нет",null,0]
[null,null,null,null,null,null,null,"нет",null,0]
[null,null,null,null,null,null,null,"нет",null,0]
[null,null,null,null,null,null,null,"нет",null,0]
[null,null,null,null,null,null,null,"нет",null,0]
[null,null,null,null,null,null,null,"нет",null,0]
[null,null,null,null,null,null,null,"нет",null,0]
[null,null,null,null,null,null,null,"нет",null,0]
[null,null,null,null,null,null,null,"нет",null,0]
[null,null,null,null,null,null,null,"нет",null,0]
[null,null,null,null,null,null,null,"нет",null,0]
[null,null,null,null,null,null,null,"нет",null,0]
[null,null,null,null,null,null,null,"нет",null,0]
[null,null,null,null,null,null,null,"нет",null,0]
[null,null,null,null,null,null,null,"нет",null,0]
[null,null,null,null,null,null,null,"нет",null,0]
[null,null,null,null,null,null,null,"нет",null,0]
[null,null,null,null,null,null,null,"нет",null,{"$f":"F456+I456","v":0}]
[null,null,null,null,null,null,null,"нет",null,0]
[null,null,null,null,null,null,null,"нет",null,0]
[null,null,null,null,null,null,null,"нет",null,0]
[null,null,null,null,null,null,null,"нет",null,0]
[null,null,null,null,null,null,null,"нет",null,0]
[null,null,null,null,null,null,null,"нет",null,0]
[null,null,null,null,null,null,null,{"$f":"IF(F463=\"Нет\",\"Полная\",IF(F463<E463,E463-F463,IF(F463>=E463,\"нет\")))","v":"нет"},null,0]
[null,null,null,null,null,null,null,"нет",null,0]
[null,null,null,null,null,null,null,"нет",null,0]
[null,null,null,null,null,null,null,"нет",null,0]
[null,null,null,null,null,null,null,"нет",null,0]
[null,null,null,null,null,null,null,"нет",null,0]
[null,null,null,null,null,null,null,"нет",null,0]
[null,null,null,null,null,null,null,"нет",null,0]
[null,null,null,null,null,null,null,"нет",null,0]
[null,null,null,null,null,null,null,"нет",null,0]
[null,null,null,null,null,null,null,"нет",null,0]
[null,null,null,null,null,null,null,"нет",null,0]
[null,null,null,null,null,null,null,"нет",null,0]
[null,null,null,null,null,null,null,"нет",null,0]
[null,null,null,null,null,null,null,"нет",null,0]
[null,null,null,null,null,null,null,"нет",null,0]
[null,null,null,null,null,null,null,"нет",null,0]
[null,null,null,null,null,null,null,"нет",null,0]
[null,null,null,null,null,null,null,"нет",null,0]
[null,null,null,null,null,null,null,"нет",null,0]
[null,null,null,null,null,null,null,"нет",null,0]
[null,null,null,null,null,null,null,"нет",null,0]
[null,null,null,null,null,null,null,"нет",null,0]
[null,null,null,null,null,null,null,"нет",null,0]
[null,null,null,null,null,null,null,"нет",null,0]
[null,null,null,null,null,null,null,"нет",null,0]
[null,null,null,null,null,null,null,"нет",null,0]
[null,null,null,null,null,null,null,"нет",null,0]
[null,null,null,null,null,null,null,"нет",null,0]
[null,null,null,null,null,null,null,"нет",null,0]
[null,null,null,null,null,null,null,"нет",null,0]
[null,null,null,null,null,null,null,"нет",null,0]
[null,null,null,null,null,null,null,"нет",null,0]
[null,null,null,null,null,null,null,"нет",null,0]
[null,null,null,null,null,null,null,"нет",null,0]
[null,null,null,null,null,null,null,"нет",null,0]
[null,null,null,null,null,null,null,"нет",null,0]
[null,null,null,null,null,null,null,"нет",null,0]
[null,null,null,null,null,null,null,"нет",null,0]
[null,null,null,null,null,null,null,"нет",null,0]
[null,null,null,null,null,null,null,"нет",null,0]
[null,null,null,null,null,null,null,"нет",null,0]
[null,null,null,null,null,null,null,"нет",null,0]
[null,null,null,null,null,null,null,"нет",null,0]
[null,null,null,null,null,null,null,"нет",null,0]
[null,null,null,null,null,null,null,"нет",null,0]
[null,null,null,null,null,null,null,"нет",null,0]
[null,null,null,null,null,null,null,"нет",null,0]
[null,null,null,null,null,null,null,"нет",null,0]
[null,null,null,null,null,null,null,"нет",null,0]
[null,null,null,null,null,null,null,"нет",null,0]
[null,null,null,null,null,null,null,"нет",null,0]
[null,null,null,null,null,null,null,"нет",null,0]
[null,null,null,null,null,null,null,"нет",null,0]
[null,null,null,null,null,null,null,"нет",null,0]
[null,null,null,null,null,null,null,"нет",null,0]
[null,null,null,null,null,null,null,"нет",null,0]
[null,null,null,null,null,null,null,"нет",null,{"$f":"F520+I520","v":0}]
[null,null,null,null,null,null,null,"нет",null,0]
[null,null,null,null,null,null,null,"нет",null,0]
[null,null,null,null,null,null,null,"нет",null,0]
[null,null,null,null,null,null,null,"нет",null,0]
[null,null,null,null,null,null,null,"нет",null,0]
[null,null,null,null,null,null,null,"нет",null,0]

{"sheet":"ЦЗЛ","index":1,"n_rows":94,"n_cols":15,"rows_kept":94,"cut":false,"hidden":false,"merged":[[0,12,1,12],[0,13,1,13],[0,14,1,14],[0,6,1,6],[0,7,1,7],[0,8,1,8],[0,9,1,9],[0,10,1,10],[0,11,1,11],[0,5,1,5],[0,0,1,0],[0,1,1,1],[0,2,1,2],[0,3,1,3],[0,4,1,4]]}
["№","Партия","Наименование ","Категория ","Номер труб на складе","Номера левых труб","Хим.состав","В реестре ГПН","НК сплошности основного металла (наличие в сертификате для труб не в реестре ГПН)","НК сварного соединения (наличие в сертификате для труб не в реестре ГПН)","Загрязненность неметаллическими включениями\n(для 2 группы и труб не в реестре ГПН)","Номера протоколов по несоответствиям (если выявлены при испытаниях)","Соответствие трубы всем требованиям по данным ЦЗЛ","Примечания","Отметка о завершении проверки \"+\" или \"-\""]
[]
[1,5666,4154,5,"56426+",55,"Да","Да",null,null,null,null,{"$f":"IF(OR(AND(G3=\"Да\",H3=\"Да\"),(AND(G3=\"Да\",I3=\"Да\",J3=\"Да\",K3=\"Да\"))),\"Да\",IF(OR(G3=\"нет\",I3=\"нет\",J3=\"Нет\",K3=\"Нет\"),\"Нет\",\"\"))","v":"Да"},null,"+"]
[6,426,4,3,456,null,null,null,null,null,null,null,{"$f":"IF(OR(AND(G4=\"Да\",H4=\"Да\"),(AND(G4=\"Да\",I4=\"Да\",J4=\"Да\",K4=\"Да\"))),\"Да\",IF(OR(G4=\"нет\",I4=\"нет\",J4=\"Нет\",K4=\"Нет\"),\"Нет\",\"\"))","v":""}]
[null,null,null,null,null,null,null,null,null,null,null,null,""]
[null,null,null,null,null,null,null,null,null,null,null,null,""]
[null,null,null,null,null,null,null,null,null,null,null,null,""]
[null,null,null,null,null,null,null,null,null,null,null,null,""]
[null,null,null,null,null,null,null,null,null,null,null,null,""]
[null,null,null,null,null,null,null,null,null,null,null,null,""]
[null,null,null,null,null,null,null,null,null,null,null,null,""]
[null,null,null,null,null,null,null,null,null,null,null,null,""]
[null,null,null,null,null,null,null,null,null,null,null,null,""]
[null,null,null,null,null,null,null,null,null,null,null,null,""]
[null,null,null,null,null,null,null,null,null,null,null,null,""]
[null,null,null,null,null,null,null,null,null,null,null,null,""]
[null,null,null,null,null,null,null,null,null,null,null,null,""]
[null,null,null,null,null,null,null,null,null,null,null,null,""]
[null,null,null,null,null,null,null,null,null,null,null,null,""]
[null,null,null,null,null,null,null,null,null,null,null,null,""]
[null,null,null,null,null,null,null,null,null,null,null,null,""]
[null,null,null,null,null,null,null,null,null,null,null,null,""]
[null,null,null,null,null,null,null,null,null,null,null,null,""]
[null,null,null,null,null,null,null,null,null,null,null,null,""]
[null,null,null,null,null,null,null,null,null,null,null,null,""]
[null,null,null,null,null,null,null,null,null,null,null,null,""]
[null,null,null,null,null,null,null,null,null,null,null,null,""]
[null,null,null,null,null,null,null,null,null,null,null,null,""]
[null,null,null,null,null,null,null,null,null,null,null,null,""]
[null,null,null,null,null,null,null,null,null,null,null,null,""]
[null,null,null,null,null,null,null,null,null,null,null,null,""]
[null,null,null,null,null,null,null,null,null,null,null,null,""]
[null,null,null,null,null,null,null,null,null,null,null,null,""]
[null,null,null,null,null,null,null,null,null,null,null,null,""]
[null,null,null,null,null,null,null,null,null,null,null,null,""]
[null,null,null,null,null,null,null,null,null,null,null,null,""]
[null,null,null,null,null,null,null,null,null,null,null,null,""]
[null,null,null,null,null,null,null,null,null,null,null,null,""]
[null,null,null,null,null,null,null,null,null,null,null,null,""]
[null,null,null,null,null,null,null,null,null,null,null,null,""]
[null,null,null,null,null,null,null,null,null,null,null,null,""]
[null,null,null,null,null,null,null,null,null,null,null,null,""]
[null,null,null,null,null,null,null,null,null,null,null,null,""]
[null,null,null,null,null,null,null,null,null,null,null,null,""]
[null,null,null,null,null,null,null,null,null,null,null,null,""]
[null,null,null,null,null,null,null,null,null,null,null,null,""]
[null,null,null,null,null,null,null,null,null,null,null,null,""]
[null,null,null,null,null,null,null,null,null,null,null,null,""]
[null,null,null,null,null,null,null,null,null,null,null,null,""]
[null,null,null,null,null,null,null,null,null,null,null,null,""]
[null,null,null,null,null,null,null,null,null,null,null,null,""]
[null,null,null,null,null,null,null,null,null,null,null,null,""]
[null,null,null,null,null,null,null,null,null,null,null,null,""]
[null,null,null,null,null,null,null,null,null,null,null,null,""]
[null,null,null,null,null,null,null,null,null,null,null,null,""]
[null,null,null,null,null,null,null,null,null,null,null,null,""]
[null,null,null,null,null,null,null,null,null,null,null,null,""]
[null,null,null,null,null,null,null,null,null,null,null,null,""]
[null,null,null,null,null,null,null,null,null,null,null,null,""]
[null,null,null,null,null,null,null,null,null,null,null,null,""]
[null,null,null,null,null,null,null,null,null,null,null,null,""]
[null,null,null,null,null,null,null,null,null,null,null,null,""]
[null,null,null,null,null,null,null,null,null,null,null,null,""]
[null,null,null,null,null,null,null,null,null,null,null,null,""]
[null,null,null,null,null,null,null,null,null,null,null,null,""]
[null,null,null,null,null,null,null,null,null,null,null,null,{"$f":"IF(OR(AND(G66=\"Да\",H66=\"Да\"),(AND(G66=\"Да\",I66=\"Да\",J66=\"Да\",K66=\"Да\"))),\"Да\",IF(OR(G66=\"нет\",I66=\"нет\",J66=\"Нет\",K66=\"Нет\"),\"Нет\",\"\"))","v":""}]
[null,null,null,null,null,null,null,null,null,null,null,null,""]
[null,null,null,null,null,null,null,null,null,null,null,null,""]
[null,null,null,null,null,null,null,null,null,null,null,null,""]
[null,null,null,null,null,null,null,null,null,null,null,null,""]
[null,null,null,null,null,null,null,null,null,null,null,null,""]
[null,null,null,null,null,null,null,null,null,null,null,null,""]
[null,null,null,null,null,null,null,null,null,null,null,null,""]
[null,null,null,null,null,null,null,null,null,null,null,null,""]
[null,null,null,null,null,null,null,null,null,null,null,null,""]
[null,null,null,null,null,null,null,null,null,null,null,null,""]
[null,null,null,null,null,null,null,null,null,null,null,null,""]
[null,null,null,null,null,null,null,null,null,null,null,null,""]
[null,null,null,null,null,null,null,null,null,null,null,null,""]
[null,null,null,null,null,null,null,null,null,null,null,null,""]
[null,null,null,null,null,null,null,null,null,null,null,null,""]
[null,null,null,null,null,null,null,null,null,null,null,null,""]
[null,null,null,null,null,null,null,null,null,null,null,null,""]
[null,null,null,null,null,null,null,null,null,null,null,null,""]
[null,null,null,null,null,null,null,null,null,null,null,null,""]
[null,null,null,null,null,null,null,null,null,null,null,null,""]
[null,null,null,null,null,null,null,null,null,null,null,null,""]
[null,null,null,null,null,null,null,null,null,null,null,null,""]
[null,null,null,null,null,null,null,null,null,null,null,null,""]
[null,null,null,null,null,null,null,null,null,null,null,null,""]
[null,null,null,null,null,null,null,null,null,null,null,null,""]
[null,null,null,null,null,null,null,null,null,null,null,null,""]
[null,null,null,null,null,null,null,null,null,null,null,null,""]
[null,null,null,null,null,null,null,null,null,null,null,null,""]

{"sheet":"Отдел","index":2,"n_rows":2,"n_cols":5,"rows_kept":2,"cut":false,"hidden":false,"merged":[]}
["№","Партия","Наименование ","Категория ","Номер труб на складе"]
[1,5666,4154,5,"56426+"]